bitfinex/quotes_ETHUSD_20250326
["timestamp","ask_amount","ask_price","bid_price","bid_amount"]
[1743016235089,5.192,1993.1,1992.4,0.7593]
[1743016235318,4.72848675,1993.2,1992.6,0.7593]
[1743016235524,0.26095303,1993.1,1992.6,0.7593]
[1743016235721,0.26095303,1993.1,1992.5,19.51881]
[1743016235722,0.26095303,1993.1,1992.7,0.7593]
[1743016235891,5.197,1993.3,1992.7,0.7593]
[1743016236090,0.26085869,1993.2,1992.8,14.5]
[1743016236291,4.72848675,1993.4,1992.9,1.45]
[1743016236496,0.26085869,1993.3,1992.9,1.45]
[1743016236718,0.26085869,1993.3,1992.7,0.7593]
[1743016237218,0.26085869,1993.3,1992.8,14.5]
[1743016238331,0.26085869,1993.3,1992.9,0.7501]
[1743016238522,4.72848675,1993.4,1993.1,0.99950225]
[1743016238817,0.26085869,1993.3,1993.1,0.99950225]
[1743016239223,4.72848675,1993.2,1992.9,0.7501]
[1743016239392,4.98934544,1993.2,1992.9,0.7501]
[1743016239810,4.98934544,1993.2,1993.0,1.00694321]
[1743016240326,4.98934544,1993.2,1992.9,0.7501]
[1743016240711,4.72848675,1993.0,1992.6,0.7672]
[1743016240899,0.26085881,1992.9,1992.6,0.7672]
[1743016241102,4.72848675,1992.8,1992.5,1.00463048]
[1743016241306,0.26071733,1992.7,1992.5,1.00463048]
[1743016241691,0.26071733,1992.7,1992.2,0.7672]
[1743016242221,0.26071733,1992.7,1992.3,14.5]
[1743016242522,4.72848675,1992.8,1992.3,16.02672]
[1743016242722,0.26071733,1992.7,1992.3,16.02672]
[1743016242906,4.72848675,1992.8,1992.3,16.02672]
[1743016243108,0.26071733,1992.7,1992.3,16.02672]
[1743016243309,4.72848675,1992.6,1992.3,16.02672]
[1743016243515,4.72848675,1992.6,1992.3,17.05538278]
[1743016243719,0.26071733,1992.5,1992.3,17.05538278]
[1743016245333,0.26071733,1992.4,1992.3,17.05538278]
[1743016245529,5.47918675,1992.8,1992.3,17.05538278]
[1743016245724,0.26071733,1992.7,1992.3,17.05538278]
[1743016245928,0.26071733,1992.7,1992.4,1.70553828]
[1743016246131,4.72848675,1992.9,1992.4,1.70553828]
[1743016246323,0.26071733,1992.8,1992.3,1.02866278]
[1743016246526,0.26071733,1992.8,1992.4,14.5]
[1743016246815,9.88748675,1993.1,1992.5,0.8225]
[1743016247017,0.26071733,1992.7,1992.5,0.8225]
[1743016247218,4.72848675,1992.7,1992.0,6.12]
[1743016247421,4.72848675,1992.5,1992.1,0.612]
[1743016247803,0.25807556,1992.4,1992.1,0.612]
[1743016248740,0.25807556,1992.4,1992.2,14.5]
[1743016251022,4.26741139,1992.3,1992.2,14.5]
[1743016251526,4.52548695,1992.3,1992.2,14.5]
[1743016252404,5.74443565,1992.3,1992.2,14.5]
[1743016252610,5.74443565,1992.3,1991.5,0.8226]
[1743016252806,4.26741139,1991.8,1991.5,0.8226]
[1743016253116,0.25411253,1991.7,1991.6,14.5]
[1743016253320,4.26741139,1991.7,1991.6,14.5]
[1743016253516,4.52147673,1991.7,1991.6,14.5]
[1743016254143,4.26741139,1991.7,1991.3,0.7757]
[1743016254438,0.25406534,1991.6,1991.3,0.7757]
[1743016254639,0.25406534,1991.6,1991.4,14.5]
[1743016254938,4.72930873,1991.9,1991.5,1.45]
[1743016255138,0.25406534,1991.8,1991.5,1.45]
[1743016255741,0.25406534,1991.8,1991.3,0.7757]
[1743016256035,0.25406534,1991.8,1991.4,14.5]
[1743016256536,4.72930873,1991.7,1991.4,14.5]
[1743016256928,0.25406534,1991.6,1991.4,14.5]
[1743016257536,10.69410873,1992.1,1991.5,0.832]
[1743016257712,0.25161054,1992.0,1991.5,2.3652]
[1743016259141,16.74820873,1992.3,1991.5,7.38644]
[1743016259349,0.25161054,1992.2,1991.6,0.8126]
[1743016259646,4.72930873,1992.1,1991.6,0.8126]
[1743016260013,4.72930873,1991.9,1991.4,20.62]
[1743016260218,4.72930873,1991.9,1991.2,0.7902]
[1743016260547,0.25316854,1991.8,1991.2,0.7902]
[1743016260864,4.72930873,1991.7,1991.3,14.5]
[1743016261016,4.72930873,1991.7,1991.3,16.02902]
[1743016261218,4.72930873,1991.7,1991.3,14.5]
[1743016261427,0.25316854,1991.6,1991.3,14.5]
[1743016262343,5.228,1991.8,1991.3,14.5]
[1743016262648,0.25316854,1991.7,1991.3,14.5]
[1743016263213,10.72690873,1992.0,1991.3,14.5]
[1743016263416,0.25316854,1991.6,1991.4,1.45]
[1743016263618,4.72930873,1991.8,1991.4,1.45]
[1743016263813,0.25316854,1991.5,1991.3,1.00345149]
[1743016264047,4.72930873,1991.8,1991.4,14.5]
[1743016264449,4.72930873,1991.6,1991.4,14.5]
[1743016264836,4.72930873,1991.6,1991.2,0.7902]
[1743016265222,4.72930873,1991.6,1991.3,14.5]
[1743016265752,4.72930873,1991.6,1991.2,1.81900947]
[1743016266749,10.72690873,1992.0,1991.2,1.81900947]
[1743016266750,4.72930873,1991.8,1991.2,1.81900947]
[1743016267427,5.9976,1992.0,1991.2,1.81900947]
[1743016267428,5.201,1991.9,1991.2,1.81900947]
[1743016267633,9.93030873,1991.9,1991.2,1.81900947]
[1743016267841,4.72930873,1991.7,1991.2,1.71293142]
[1743016268151,4.72930873,1991.7,1991.2,1.02880947]
[1743016268523,4.72930873,1991.7,1991.0,6.12]
[1743016269823,4.72930873,1991.7,1991.1,0.7919]
[1743016271246,4.72930873,1991.7,1991.2,0.05021248]
[1743016271419,4.72930873,1991.7,1991.2,0.05021189]
[1743016271619,4.72930873,1991.7,1991.1,0.7919]
[1743016271863,4.72930873,1991.7,1991.4,1.00039242]
[1743016273425,0.7582,1991.9,1991.5,0.7587]
[1743016273626,4.72930873,1992.1,1991.5,0.7587]
[1743016273827,9.90930873,1992.1,1991.5,0.7587]
[1743016274027,4.72930873,1992.1,1991.5,0.7587]
[1743016274864,0.22744548,1992.0,1991.6,0.80889946]
[1743016275030,0.22744548,1992.0,1991.6,0.7587]
[1743016275225,9.90930873,1992.3,1991.6,5.77978]
[1743016275428,0.22744548,1991.9,1991.7,0.577978]
[1743016275628,9.90930873,1992.3,1991.8,0.7677]
[1743016276928,4.26773124,1992.2,1991.8,0.7677]
[1743016277559,4.26773124,1992.1,1991.8,0.7677]
[1743016277931,4.26773124,1992.2,1991.8,0.7677]
[1743016280562,9.44773124,1992.3,1991.8,0.7677]
[1743016281161,0.7746,1992.6,1991.8,5.78818]
[1743016281326,4.26773124,1992.4,1991.9,0.578818]
[1743016281528,4.26773124,1992.5,1991.8,5.78828]
[1743016281766,4.26773124,1992.4,1991.8,5.78828]
[1743016282372,4.26773124,1992.3,1991.8,0.7677]
[1743016282865,4.26773124,1992.0,1991.8,0.7677]
[1743016283168,4.26773124,1991.9,1991.6,0.7678]
[1743016283346,4.26773124,1991.7,1991.4,0.7678]
[1743016283542,4.26773124,1991.8,1991.4,0.7678]
[1743016283747,0.23009508,1991.7,1991.4,0.7678]
[1743016284047,4.26773124,1992.1,1991.4,10.05711124]
[1743016284252,4.26773124,1992.1,1991.5,1.00571112]
[1743016284454,0.22782408,1992.0,1991.5,1.00571112]
[1743016285245,4.26773124,1991.9,1991.5,1.00571112]
[1743016285572,0.22820267,1991.8,1991.4,1.13668832]
[1743016285775,4.26773124,1991.9,1991.4,1.13668832]
[1743016286063,0.22820267,1991.7,1991.4,1.13668832]
[1743016286277,4.26773124,1991.8,1991.4,0.7678]
[1743016286441,4.69450436,1991.7,1991.4,0.7678]
[1743016286643,4.49593391,1991.7,1991.4,0.7678]
[1743016286869,0.22820267,1991.7,1991.4,0.7678]
[1743016287249,0.22820267,1991.7,1991.4,10.05703124]
[1743016287448,5.04233124,1992.1,1991.4,5.7893]
[1743016287640,0.22820267,1991.6,1991.4,10.81081]
[1743016287841,0.7746,1992.1,1991.5,6.102411]
[1743016288174,4.26773124,1992.3,1991.7,5.02083]
[1743016288370,4.26773124,1992.3,1991.8,0.7698]
[1743016288672,4.26773124,1992.3,1991.8,5.79026]
[1743016288868,0.7746,1992.6,1991.9,4.31792379]
[1743016289042,5.04233124,1992.6,1992.0,0.43179238]
[1743016289238,4.26773124,1992.2,1991.9,0.38458925]
[1743016289438,4.26773124,1992.0,1991.7,0.8054]
[1743016289848,0.23014255,1991.9,1991.4,0.38228768]
[1743016290071,4.26773124,1991.8,1991.2,0.8054]
[1743016290452,0.22985871,1991.7,1991.2,0.8054]
[1743016291243,4.72973766,1991.9,1991.2,1.18802726]
[1743016291575,0.98115871,1991.8,1991.2,1.80904999]
[1743016291779,0.98115871,1991.8,1991.2,1.18802726]
[1743016293157,4.72973766,1991.7,1991.5,1.02013814]
[1743016293673,0.22985871,1991.6,1991.5,1.02013814]
[1743016294671,0.15985871,1991.6,1991.5,1.02013814]
[1743016294866,0.22402538,1991.6,1991.5,1.02013814]
[1743016295063,0.22402538,1991.6,1991.2,0.8054]
[1743016295264,4.72973766,1991.4,1990.9,0.776]
[1743016295651,0.22274787,1991.3,1990.9,0.776]
[1743016296083,4.72973766,1991.4,1990.9,0.776]
[1743016296465,0.22274787,1991.3,1990.9,0.776]
[1743016296780,4.72973766,1991.4,1990.9,5.7988]
[1743016296986,0.22274787,1991.3,1991.0,0.57988]
[1743016297278,4.72973766,1991.4,1991.0,0.57988]
[1743016297467,4.72973766,1991.4,1990.9,0.776]
[1743016297468,4.72973766,1991.4,1991.2,1.02287533]
[1743016297668,0.22274787,1991.3,1991.2,1.02287533]
[1743016298079,4.72973766,1991.4,1991.2,1.02287533]
[1743016298392,0.22274787,1991.3,1991.2,1.02287533]
[1743016298680,4.72973766,1991.4,1991.2,1.02287533]
[1743016298876,0.22274787,1991.3,1991.2,1.02287533]
[1743016299247,4.72973766,1991.4,1991.2,1.02287533]
[1743016299656,0.22274787,1991.3,1991.2,1.02287533]
[1743016299975,4.72973766,1991.4,1991.2,1.02287533]
[1743016300156,0.22274787,1991.3,1991.2,1.02287533]
[1743016300357,33.99522,1992.4,1991.2,1.02287533]
[1743016300358,5.50433766,1991.9,1991.2,1.77507533]
[1743016300563,0.22274787,1991.8,1991.2,1.77507533]
[1743016300963,0.22274787,1991.8,1991.2,6.79715533]
[1743016301288,0.22274787,1991.8,1991.2,1.77507533]
[1743016301459,0.22274787,1991.8,1991.4,0.7522]
[1743016301659,0.22274787,1991.8,1991.7,0.7522]
[1743016301865,4.72973766,1992.4,1991.7,1.32952]
[1743016302063,4.72973766,1992.2,1991.7,1.32952]
[1743016302455,4.72973766,1991.8,1991.3,0.7856]
[1743016302649,0.7746,1992.0,1991.3,0.7856]
[1743016302650,4.72973766,1991.6,1991.3,0.7856]
[1743016302861,4.72973766,1991.8,1991.3,0.7856]
[1743016303062,9.83873766,1992.0,1991.3,5.80736]
[1743016303254,0.18804156,1991.7,1991.3,5.80736]
[1743016303454,9.83873766,1992.0,1991.4,0.580736]
[1743016303654,0.18804156,1991.6,1991.4,0.580736]
[1743016303873,9.83873766,1992.0,1991.4,0.580736]
[1743016304192,0.18804156,1991.9,1991.4,0.580736]
[1743016304687,0.18804156,1991.9,1991.4,5.602316]
[1743016304884,0.18804156,1991.9,1991.5,0.5602316]
[1743016305086,0.18804156,1991.9,1991.5,0.7528]
[1743016306366,0.18804156,1991.9,1991.7,0.98713503]
[1743016306690,0.18804156,1991.9,1991.8,0.05019904]
[1743016306893,0.18804156,1991.9,1991.8,0.7528]
[1743016307054,4.72973766,1992.2,1991.8,0.7528]
[1743016307379,5.50433766,1992.4,1991.8,0.7528]
[1743016307581,0.18884602,1992.3,1991.8,0.7528]
[1743016308491,4.72973766,1992.2,1991.8,0.7528]
[1743016308994,0.18884602,1992.1,1991.8,0.7528]
[1743016309159,4.72973766,1992.2,1991.8,0.7528]
[1743016309356,4.72973766,1991.9,1991.6,0.766]
[1743016309576,4.72973766,1991.9,1991.4,1.346736]
[1743016309783,0.18955564,1991.8,1991.4,1.346736]
[1743016309991,4.72973766,1991.9,1991.4,1.346736]
[1743016310289,0.18955564,1991.8,1991.4,1.346736]
[1743016310594,4.72973766,1991.9,1991.4,6.368216]
[1743016310907,0.18955564,1991.8,1991.5,5.6580716]
[1743016311086,0.18955564,1991.8,1991.6,0.81619968]
[1743016311296,4.72973766,1992.1,1991.6,0.766]
[1743016311657,0.1884202,1992.0,1991.6,0.766]
[1743016312086,0.1884202,1992.0,1991.6,5.78688]
[1743016312288,0.1884202,1992.0,1991.7,5.599508]
[1743016312592,9.83773766,1992.5,1991.9,0.766]
[1743016312809,4.72973766,1992.5,1992.0,0.05019014]
[1743016312992,4.72973766,1992.5,1991.9,5.78622]
[1743016313299,9.83773766,1992.7,1992.0,5.02005]
[1743016313595,4.72973766,1992.5,1992.1,0.502005]
[1743016313778,4.72973766,1992.5,1991.9,6.77259369]
[1743016314979,4.72973766,1992.5,1991.9,5.7862]
[1743016315883,4.72973766,1992.5,1992.0,5.02007]
[1743016316482,4.72973766,1992.5,1991.9,5.78632]
[1743016316793,4.72973766,1992.5,1992.0,5.02003]
[1743016317000,4.2661896,1992.5,1992.1,0.502003]
[1743016317493,4.2661896,1992.5,1991.9,6.15489724]
[1743016317873,4.2661896,1992.5,1992.3,0.99756041]
[1743016319875,0.19140043,1992.4,1992.3,0.99756041]
[1743016320780,0.19140043,1992.4,1992.3,1.82316041]
[1743016320982,4.2661896,1992.9,1992.3,6.84248041]
[1743016321294,0.7746,1993.0,1992.4,0.68424804]
[1743016321295,4.2661896,1992.7,1992.4,0.68424804]
[1743016321607,4.2661896,1992.7,1992.3,1.82316041]
[1743016321763,4.2661896,1992.7,1992.3,0.8256]
[1743016321968,0.17744492,1992.6,1992.3,0.8256]
[1743016322160,4.2661896,1992.5,1992.3,0.8256]
[1743016322377,4.2661896,1992.5,1992.0,0.8174]
[1743016322577,0.17744492,1992.4,1992.0,0.8174]
[1743016323016,0.17744492,1992.4,1992.0,5.83747]
[1743016323229,0.17744492,1992.4,1992.0,0.8174]
[1743016324993,4.2661896,1992.1,1991.7,0.578688]
[1743016325305,4.2661896,1991.9,1991.6,0.782]
[1743016325806,4.2661896,1992.1,1991.6,0.782]
[1743016326106,0.17768137,1992.0,1991.6,0.782]
[1743016326306,0.17768137,1992.0,1991.6,5.803]
[1743016326506,0.17768137,1992.0,1991.7,0.6304985]
[1743016326707,5.0407896,1992.2,1991.7,0.6304985]
[1743016326908,5.0407896,1992.2,1991.7,0.5803]
[1743016327117,4.2661896,1992.0,1991.6,0.782]
[1743016327418,5.0407896,1992.2,1991.7,0.05019967]
[1743016327723,0.17768137,1992.1,1991.6,5.80295]
[1743016328219,4.2661896,1992.1,1991.6,0.782]
[1743016328431,0.17768137,1992.0,1991.6,0.782]
[1743016328776,4.2661896,1992.1,1991.6,0.782]
[1743016328979,0.17768137,1992.0,1991.7,0.8]
[1743016329206,4.2661896,1992.3,1991.7,5.82068]
[1743016329406,0.17484351,1992.2,1991.8,0.582068]
[1743016329611,4.2661896,1992.1,1991.7,0.8]
[1743016329812,4.2661896,1991.9,1991.5,6.8927]
[1743016329979,4.2661896,1991.7,1991.5,6.12]
[1743016330179,4.2661896,1991.7,1991.4,0.580736]
[1743016330380,0.17484351,1991.6,1991.3,0.7727]
[1743016330809,4.2661896,1991.7,1991.3,0.7727]
[1743016331012,0.17465428,1991.6,1991.3,0.7727]
[1743016332322,0.17465428,1991.6,1991.4,14.5]
[1743016332617,4.2661896,1991.5,1991.4,14.5]
[1743016332819,4.43904586,1991.5,1991.4,14.5]
[1743016333593,4.43904586,1991.5,1991.3,0.7727]
[1743016333803,4.43904586,1991.5,1991.2,6.12]
[1743016333999,4.2661896,1991.3,1991.2,20.62]
[1743016334222,4.43885656,1991.3,1991.2,14.5]
[1743016334434,4.2661896,1991.3,1991.2,15.48610304]
[1743016336323,4.2661896,1991.3,1991.2,14.5]
[1743016336725,4.43824126,1991.3,1991.2,14.5]
[1743016337095,4.2661896,1991.3,1991.2,14.5]
[1743016338929,4.43824126,1991.3,1990.8,1.16635266]
[1743016339142,0.17205166,1991.3,1990.8,6.18938266]
[1743016339340,5.01984,1992.1,1990.8,6.18938266]
[1743016339341,4.2661896,1991.7,1991.2,5.80899]
[1743016339513,4.2661896,1991.7,1991.2,0.787]
[1743016339697,0.15335964,1991.6,1991.2,0.787]
[1743016339900,0.15335964,1991.6,1991.3,14.5]
[1743016340140,5.8826,1991.9,1991.3,16.0287]
[1743016340141,4.2661896,1991.5,1991.3,16.0287]
[1743016340518,0.15335964,1991.4,1991.3,16.0287]
[1743016340722,0.15335964,1991.4,1991.3,21.05054]
[1743016341036,4.2661896,1992.0,1991.4,5.02143]
[1743016341330,0.15335964,1991.9,1991.5,0.787]
[1743016341513,0.15335964,1991.9,1991.5,6.1860199]
[1743016341708,0.15335964,1991.9,1991.6,0.61860199]
[1743016341910,0.15335964,1991.9,1991.6,15.11860199]
[1743016343535,4.41954924,1991.9,1991.6,15.11860199]
[1743016344213,5.0407896,1992.1,1991.6,15.11860199]
[1743016344530,0.15335964,1992.0,1991.6,15.11860199]
[1743016344736,0.15335964,1992.0,1991.7,1.5118602]
[1743016345206,0.15335964,1992.0,1991.5,1.1647999]
[1743016345409,0.15335964,1992.0,1991.6,14.5]
[1743016345623,4.41954924,1992.0,1991.6,14.5]
[1743016349131,4.2661896,1991.9,1991.6,14.5]
[1743016349337,4.2661896,1991.8,1991.3,2.3375]
[1743016349501,0.15591927,1991.8,1991.3,1.1772875]
[1743016349706,0.15591927,1991.8,1991.6,5.02099]
[1743016349905,5.0407896,1992.5,1991.8,5.02037]
[1743016350230,0.15857363,1992.4,1991.9,0.7516]
[1743016350430,0.15857363,1992.4,1991.9,5.7719]
[1743016350640,0.15857363,1992.4,1992.0,15.07719]
[1743016351042,4.42476323,1992.4,1992.0,15.07719]
[1743016351606,4.2661896,1992.3,1992.0,15.07719]
[1743016351904,0.16051609,1992.2,1992.0,15.07719]
[1743016357941,0.16051609,1992.2,1992.0,14.5]
[1743016357942,4.42670569,1992.2,1992.0,14.5]
[1743016358128,4.42670569,1992.2,1991.9,0.7516]
[1743016358129,0.7746,1992.0,1991.3,0.7923]
[1743016358337,5.0407896,1991.6,1991.0,0.7923]
[1743016358537,4.2661896,1991.4,1991.1,14.5]
[1743016358846,4.42580562,1991.3,1991.1,16.06747671]
[1743016359145,5.0407896,1991.2,1990.6,0.8209]
[1743016359314,4.2661896,1990.9,1990.6,0.8209]
[1743016359641,4.2661896,1990.9,1990.7,14.5]
[1743016359642,0.15478195,1990.8,1990.7,14.5]
[1743016359844,4.2661896,1990.9,1990.7,14.5]
[1743016360039,4.42097155,1990.8,1990.7,14.5]
[1743016360232,0.7746,1990.7,1990.3,0.005]
[1743016360430,4.2661896,1990.5,1990.3,0.005]
[1743016360636,4.2661896,1990.5,1990.4,14.5]
[1743016360825,4.2661896,1990.5,1990.3,0.005]
[1743016361149,0.15302759,1990.4,1990.3,0.005]
[1743016361346,0.15302759,1990.4,1990.3,14.505]
[1743016361975,8.68540679,1990.4,1990.3,0.005]
[1743016362135,14.92603851,1990.4,1990.3,0.005]
[1743016364249,17.92603851,1990.4,1990.3,0.005]
[1743016364447,5.79922,1990.2,1990.1,0.07]
[1743016364664,15.31485434,1990.2,1990.1,0.07]
[1743016364841,16.25835728,1990.2,1990.1,0.07]
[1743016365045,16.73151404,1990.2,1990.1,0.07]
[1743016366732,5.02487,1990.1,1990.0,1.0236507]
[1743016366959,5.02638,1989.5,1989.4,0.005]
[1743016367134,5.80199,1989.1,1987.8,5.83946]
[1743016367334,5.80199,1989.1,1988.2,14.5]
[1743016367335,10.62194636,1989.1,1988.2,14.5]
[1743016367538,5.64912879,1989.1,1988.5,0.99698979]
[1743016367732,10.75612879,1989.1,1988.5,0.99698979]
[1743016367933,5.02817,1988.8,1987.9,0.1190748]
[1743016368232,4.73934636,1988.2,1987.9,0.1190748]
[1743016368563,5.51394636,1988.5,1987.9,14.6190748]
[1743016368781,0.13028798,1988.2,1987.9,14.6190748]
[1743016369067,0.90488798,1988.2,1987.9,0.1190748]
[1743016369563,1.46931141,1988.2,1988.1,0.02503]
[1743016370265,0.90488798,1988.2,1988.1,0.02503]
[1743016371475,0.13028798,1988.2,1988.1,0.02503]
[1743016371962,4.73934636,1988.4,1988.1,0.02503]
[1743016372166,0.13028798,1988.2,1988.1,14.52503]
[1743016372386,5.51394636,1988.7,1988.1,14.52503]
[1743016372688,4.73934636,1988.9,1988.1,14.52503]
[1743016372837,4.73934636,1988.5,1988.3,1.00744951]
[1743016373038,4.73934636,1988.7,1988.3,1.00744951]
[1743016373273,0.7746,1989.0,1988.4,0.05028781]
[1743016373274,0.13028798,1988.6,1988.4,0.05028781]
[1743016373434,0.13028798,1988.6,1988.4,0.50795478]
[1743016373633,4.73934636,1989.2,1988.4,10.56594478]
[1743016373831,4.73934636,1988.8,1988.4,0.50795478]
[1743016374140,5.51394636,1988.6,1988.5,14.5]
[1743016374337,5.51394636,1988.6,1988.1,0.02503]
[1743016374638,4.73934636,1988.2,1988.1,0.02503]
[1743016375038,4.86963434,1988.2,1988.1,0.02503]
[1743016380074,5.64423434,1988.2,1988.1,0.02503]
[1743016380874,10.67390434,1988.2,1988.1,0.02503]
[1743016381051,18.9632507,1988.2,1988.1,0.02503]
[1743016381247,3.0,1987.8,1987.2,0.07976227]
[1743016381460,0.12139611,1987.7,1987.2,0.84986227]
[1743016381665,5.50894636,1987.3,1987.2,0.07976227]
[1743016381874,5.6283437,1987.3,1987.2,0.07976227]
[1743016383861,4.8587437,1987.3,1987.2,0.07976227]
[1743016386158,0.11939734,1987.3,1987.2,0.07976227]
[1743016386582,4.73934636,1987.5,1987.2,0.07976227]
[1743016386782,0.11925454,1987.3,1987.2,0.07976227]
[1743016387248,4.73934636,1987.5,1987.2,0.07976227]
[1743016387448,0.11425712,1987.4,1987.2,0.07976227]
[1743016387675,4.73934636,1987.9,1987.3,0.8176]
[1743016387875,0.11425712,1987.8,1987.3,0.8176]
[1743016389067,4.73934636,1987.9,1987.3,0.8176]
[1743016389369,0.11425712,1987.8,1987.3,0.8176]
[1743016390058,0.11425712,1987.7,1987.3,0.8176]
[1743016390260,4.73934636,1988.1,1987.3,0.8176]
[1743016390462,0.11425712,1988.0,1987.4,5.316]
[1743016390772,0.11425712,1988.0,1987.6,0.7731]
[1743016390773,4.73934636,1988.0,1987.6,0.7731]
[1743016390949,0.11425712,1987.9,1987.6,0.7731]
[1743016391269,0.11425712,1987.9,1987.6,1.1529378]
[1743016391472,4.73934636,1988.8,1987.8,0.8069]
[1743016391673,0.12087283,1988.5,1987.9,5.312]
[1743016391870,0.12087283,1988.5,1988.1,0.8069]
[1743016392071,5.51394636,1989.0,1988.1,0.8069]
[1743016392276,4.73934636,1988.8,1988.1,0.8069]
[1743016392482,4.73934636,1989.0,1988.3,5.0292]
[1743016392683,0.12087283,1988.9,1988.4,10.56098]
[1743016392980,4.73934636,1989.2,1988.5,0.8069]
[1743016393184,0.7746,1989.3,1988.5,5.83566]
[1743016393500,4.73934636,1989.2,1988.6,0.05027875]
[1743016393683,4.86021919,1989.2,1988.6,0.63887263]
[1743016393982,0.12087283,1989.2,1988.7,5.02822]
[1743016394181,0.12087283,1989.2,1988.8,5.02809]
[1743016394366,4.73934636,1989.4,1988.8,5.02809]
[1743016394567,4.73934636,1989.4,1988.8,10.05611]
[1743016394568,0.12087283,1989.1,1988.8,10.05611]
[1743016394772,4.73934636,1989.4,1988.9,0.81]
[1743016394973,0.12087283,1989.0,1988.9,0.81]
[1743016395152,0.7746,1989.6,1988.9,0.81]
[1743016395568,0.12087283,1989.5,1988.9,0.81]
[1743016397153,5.04405887,1989.5,1988.9,0.81]
[1743016397360,0.50440589,1989.4,1988.7,0.81]
[1743016397754,0.12610342,1989.3,1988.7,0.81]
[1743016397960,0.12610342,1989.3,1988.8,0.05027447]
[1743016398156,0.12610342,1989.3,1988.7,5.83826]
[1743016398378,0.7746,1989.6,1988.7,0.81]
[1743016398581,0.12610342,1989.2,1988.7,2.005849]
[1743016398789,0.7746,1989.6,1988.7,2.005849]
[1743016398991,0.12610342,1989.1,1988.7,0.81]
[1743016399186,4.92318604,1989.5,1988.7,0.81]
[1743016399359,0.12610342,1989.0,1988.7,5.83838]
[1743016399555,4.92318604,1989.5,1988.7,0.81]
[1743016399796,0.4923186,1989.4,1988.7,1.393855]
[1743016400014,4.92318604,1989.2,1988.1,6.9068]
[1743016400290,4.92318604,1988.9,1988.1,6.9068]
[1743016400511,0.89860342,1988.8,1988.1,6.9068]
[1743016400691,0.89860342,1988.8,1988.1,0.7868]
[1743016401910,0.12610342,1988.8,1988.1,0.7868]
[1743016402209,0.12610342,1988.8,1988.1,5.81659]
[1743016402369,6.0485,1989.1,1988.2,5.611319]
[1743016402574,0.12610342,1988.7,1988.2,5.611319]
[1743016402815,6.0485,1989.1,1988.2,0.581659]
[1743016403014,0.12610342,1988.6,1988.2,0.581659]
[1743016403321,6.0485,1989.1,1988.2,0.581659]
[1743016403465,0.60485,1989.0,1988.2,0.581659]
[1743016403673,0.12610342,1988.9,1988.2,0.581659]
[1743016404819,6.0765,1989.1,1988.2,0.581659]
[1743016404971,0.12610342,1988.8,1988.2,0.581659]
[1743016405177,6.0745,1989.1,1988.2,0.581659]
[1743016405413,0.12610342,1988.7,1988.2,5.611089]
[1743016405612,6.0745,1989.1,1988.3,0.05028478]
[1743016405917,6.0745,1989.1,1988.3,10.05857]
[1743016406070,0.12924246,1989.0,1988.5,0.7814]
[1743016406275,0.12924246,1989.0,1988.6,5.02856]
[1743016406506,0.4923186,1989.4,1988.7,0.502856]
[1743016406689,0.11665106,1988.9,1988.6,5.299]
[1743016406886,0.4923186,1989.4,1988.6,10.3276]
[1743016407102,0.11841187,1989.3,1988.6,10.3276]
[1743016407268,0.11841187,1989.3,1988.7,0.7814]
[1743016407472,6.06,1989.4,1987.6,0.1]
[1743016407728,0.7746,1988.0,1987.2,5.11185227]
[1743016407904,0.7746,1988.0,1987.3,0.7814]
[1743016408218,0.11912553,1987.9,1987.3,0.7814]
[1743016408715,0.11912553,1987.9,1987.3,10.84522]
[1743016408869,0.11912553,1987.9,1987.4,1.084522]
[1743016409415,5.04231157,1987.9,1987.2,0.07976227]
[1743016409621,0.11912553,1987.9,1987.2,0.07976227]
[1743016409820,0.11912553,1987.9,1987.3,1.02093053]
[1743016410286,5.64412553,1987.9,1987.3,1.02093053]
[1743016410686,0.11912553,1987.9,1987.3,1.71685081]
[1743016411503,0.11912553,1987.9,1987.3,1.02093053]
[1743016412408,0.11912553,1987.9,1987.3,6.05280053]
[1743016412593,0.11912553,1987.9,1987.4,5.03161]
[1743016412802,0.11912553,1987.9,1987.5,5.03141]
[1743016412987,0.11912553,1987.9,1987.6,0.7823]
[1743016413183,0.7746,1988.4,1987.6,0.7823]
[1743016413398,0.10741242,1987.8,1987.6,1.363659]
[1743016413597,0.7746,1988.4,1987.7,1.03262019]
[1743016413978,0.10741242,1988.3,1987.7,1.03262019]
[1743016415399,0.10741242,1988.3,1987.6,6.394649]
[1743016415572,0.10741242,1988.3,1987.7,0.6394649]
[1743016416075,0.10741242,1988.3,1987.7,5.6703149]
[1743016416279,0.10741242,1988.3,1988.0,0.98577634]
[1743016416500,0.10741242,1988.3,1987.8,5.03067]
[1743016416501,4.92318604,1988.2,1987.6,0.581359]
[1743016416690,0.10893671,1988.1,1987.4,0.7637]
[1743016417773,0.10893671,1988.1,1987.7,0.99333675]
[1743016418203,4.92318604,1988.2,1987.7,0.99333675]
[1743016418713,0.10893671,1988.1,1987.7,0.99333675]
[1743016419080,4.92318604,1988.2,1987.7,0.99333675]
[1743016419305,0.10893671,1988.1,1987.7,0.99333675]
[1743016419506,5.41550464,1988.2,1987.7,0.99333675]
[1743016419707,0.10893671,1988.1,1987.7,0.99333675]
[1743016420007,5.41550464,1988.2,1987.7,0.99333675]
[1743016420477,0.10893671,1988.1,1987.7,0.99333675]
[1743016420678,5.41550464,1988.2,1987.7,0.99333675]
[1743016420877,0.10893671,1988.1,1987.7,0.99333675]
[1743016421181,5.41550464,1988.2,1987.7,0.99333675]
[1743016421405,0.10893671,1988.0,1987.7,0.99333675]
[1743016421603,0.7746,1988.4,1987.8,5.03054]
[1743016421795,0.10071875,1987.9,1987.8,5.78964]
[1743016422114,0.7746,1988.7,1988.0,5.02997]
[1743016422406,0.7746,1988.7,1988.1,5.83930885]
[1743016422407,0.10071891,1988.7,1988.1,5.83930885]
[1743016422608,0.10071891,1988.7,1988.2,0.58393089]
[1743016422788,5.69778604,1989.0,1988.2,0.58393089]
[1743016422989,0.10071891,1988.6,1988.2,0.58393089]
[1743016423184,5.69778604,1989.0,1988.2,0.58393089]
[1743016423391,0.10071891,1988.5,1988.2,0.58393089]
[1743016423597,5.69778604,1989.0,1988.2,0.58393089]
[1743016423813,6.26756464,1989.0,1988.2,0.58393089]